bitfinex/quotes_SOLUSD_20240717
["timestamp","ask_amount","ask_price","bid_price","bid_amount"]
[1721197732444,14.69,161.8,161.75,22.344]
[1721197732735,6.1793,161.83,161.76,14.69]
[1721197732937,15.444,161.88,161.75,22.344]
[1721197732938,14.69,161.8,161.75,37.034]
[1721197733121,14.69,161.81,161.76,15.9260916]
[1721197733321,14.69,161.81,161.77,1.23601512]
[1721197734033,14.69,161.82,161.77,15.92601512]
[1721197735026,0.17,161.84,161.77,15.92601512]
[1721197735027,14.69,161.83,161.78,14.69]
[1721197735223,6.3491,161.84,161.79,1.23591727]
[1721197735538,14.69,161.84,161.81,15.6649]
[1721197735739,14.69,161.83,161.81,15.6649]
[1721197736035,14.69,161.82,161.81,15.6649]
[1721197737038,6.1789,161.84,161.81,15.6649]
[1721197737251,14.69,161.83,161.81,15.6649]
[1721197738149,6.1789,161.84,161.81,15.6649]
[1721197738325,14.69,161.83,161.81,15.6649]
[1721197739435,14.69,161.82,161.81,15.6649]
[1721197740053,6.1784,161.86,161.81,15.6649]
[1721197740240,14.69,161.83,161.81,15.6649]
[1721197740627,14.69,161.84,161.81,15.6649]
[1721197741541,14.69,161.83,161.81,15.6649]
[1721197741851,20.8697,161.82,161.81,15.6649]
[1721197743759,20.8697,161.82,161.77,16.3216]
[1721197743931,14.69,161.8,161.77,16.3216]
[1721197748126,6.1797,161.82,161.77,16.3216]
[1721197748127,14.69,161.79,161.77,16.3216]
[1721197750449,14.69,161.8,161.77,16.3216]
[1721197752163,6.1794,161.83,161.77,16.3216]
[1721197752363,14.69,161.8,161.77,16.3216]
[1721197754542,6.1794,161.83,161.77,16.3216]
[1721197754767,14.69,161.81,161.78,1.2360415]
[1721197757242,6.1794,161.83,161.77,16.3216]
[1721197757438,14.69,161.81,161.77,16.3216]
[1721197758046,14.69,161.8,161.77,16.3216]
[1721197758538,6.349,161.84,161.77,16.3216]
[1721197758737,14.69,161.82,161.77,16.3216]
[1721197759470,14.69,161.81,161.77,16.3216]
[1721197762167,14.69,161.8,161.77,16.3216]
[1721197763165,6.1798,161.82,161.77,16.3216]
[1721197765377,6.1794,161.83,161.77,16.3216]
[1721197765873,58.93,161.84,161.77,16.3216]
[1721197765874,14.69,161.81,161.78,1.2360904]
[1721197766056,14.69,161.81,161.77,16.3216]
[1721197767255,14.69,161.81,161.78,1.23605384]
[1721197767867,14.69,161.83,161.78,1.23605384]
[1721197768086,15.4421,161.9,161.79,14.69]
[1721197768253,14.69,161.85,161.8,15.92577225]
[1721197768602,14.69,161.85,161.81,14.69]
[1721197768749,14.69,161.85,161.82,1.23574965]
[1721197768939,14.69,161.85,161.83,1.23574766]
[1721197769251,14.69,161.85,161.81,14.69]
[1721197769443,14.69,161.85,161.78,21.23572291]
[1721197769444,14.69,161.85,161.82,1.23572161]
[1721197769648,14.69,161.86,161.83,1.23572162]
[1721197770372,14.69,161.84,161.78,20.0]
[1721197770544,14.69,161.83,161.78,34.69]
[1721197770745,14.69,161.83,161.79,1.23591735]
[1721197770949,14.69,161.83,161.8,1.23588985]
[1721197771976,14.69,161.83,161.79,1.23589387]
[1721197772174,14.69,161.83,161.77,16.3216]
[1721197772359,6.1789,161.84,161.77,31.0116]
[1721197772555,14.69,161.82,161.77,31.0116]
[1721197773258,14.69,161.82,161.77,16.3216]
[1721197773780,14.69,161.82,161.78,1.23600931]
[1721197774763,14.69,161.83,161.78,15.92600931]
[1721197776183,6.1778,161.87,161.79,14.69]
[1721197776363,14.69,161.85,161.8,15.92574533]
[1721197776688,14.69,161.84,161.79,14.69]
[1721197777062,14.69,161.83,161.78,14.69]
[1721197777794,6.1783,161.86,161.78,14.69]
[1721197777969,14.69,161.85,161.79,1.23579963]
[1721197778170,14.69,161.85,161.8,15.92572423]
[1721197778975,14.69,161.85,161.8,14.69]
[1721197779290,14.69,161.84,161.8,14.69]
[1721197779595,14.69,161.85,161.8,14.69]
[1721197781297,14.69,161.85,161.77,16.3216]
[1721197781298,14.69,161.84,161.79,14.69]
[1721197781478,6.178,161.87,161.79,14.69]
[1721197781803,14.69,161.84,161.79,14.69]
[1721197782295,14.69,161.85,161.8,15.92575869]
[1721197782798,7.3022435,161.91,161.83,14.69]
[1721197783002,6.1767,161.9,161.84,1.23558214]
[1721197783359,0.8332435,161.91,161.85,14.69]
[1721197783610,14.69,161.9,161.86,1.23538443]
[1721197784277,6.1777,161.88,161.83,15.6135]
[1721197784608,6.177,161.89,161.83,15.6135]
[1721197785795,6.1767,161.9,161.83,30.3035]
[1721197786871,1.0032435,161.91,161.83,30.3035]
[1721197787078,1.0032435,161.91,161.83,15.6135]
[1721197787377,6.1767,161.9,161.83,15.6135]
[1721197787902,7.1795435,161.91,161.83,15.6135]
[1721197788101,7.1795435,161.91,161.83,30.3035]
[1721197788279,6.1767,161.9,161.83,30.3035]
[1721197788471,1.0032435,161.91,161.83,30.3035]
[1721197788674,0.8332435,161.91,161.83,30.3035]
[1721197788876,7.0094435,161.91,161.83,30.3035]
[1721197789799,14.69,161.89,161.84,14.69]
[1721197790801,0.8332435,161.91,161.84,14.69]
[1721197790978,14.69,161.89,161.84,14.69]
[1721197791714,7.0095435,161.91,161.83,30.3035]
[1721197791715,14.69,161.88,161.83,30.3035]
[1721197792799,0.8332435,161.91,161.85,14.69]
[1721197792985,15.5232435,161.91,161.86,15.92529212]
[1721197793790,14.69,161.9,161.86,1.23529212]
[1721197794004,0.8332435,161.91,161.86,15.92529212]
[1721197794299,15.5232435,161.91,161.86,14.69]
[1721197795406,0.8332435,161.91,161.87,38.48504765]
[1721197795887,15.5232435,161.91,161.87,23.79504765]
[1721197796288,0.8332435,161.91,161.87,16.309]
[1721197796511,14.69,161.88,161.83,22.3251]
[1721197796671,14.69,161.86,161.83,22.3251]
[1721197798681,14.69,161.84,161.79,16.0892]
[1721197798881,14.69,161.82,161.79,16.0892]
[1721197799215,14.69,161.81,161.79,16.0892]
[1721197799510,22.4555,161.86,161.73,16.0892]
[1721197799684,14.69,161.8,161.75,14.69]
[1721197800078,14.69,161.8,161.73,22.54246338]
[1721197800277,14.69,161.8,161.76,14.69]
[1721197800498,14.69,161.8,161.73,22.54246338]
[1721197800682,14.69,161.8,161.75,14.69]
[1721197800906,14.69,161.79,161.76,1.23615931]
[1721197801325,14.69,161.8,161.76,1.23615931]
[1721197801485,14.69,161.8,161.75,14.69]
[1721197801889,6.179,161.84,161.76,21.23616159]
[1721197802101,0.34,161.83,161.76,21.23616159]
[1721197802393,14.69,161.8,161.76,20.0]
[1721197802715,0.17,161.83,161.77,1.23612446]
[1721197803008,14.69,161.79,161.76,20.0]
[1721197803210,14.69,161.79,161.74,34.69]
[1721197803633,0.17,161.83,161.73,16.0892]
[1721197803805,14.69,161.76,161.73,16.0892]
[1721197804119,6.1797,161.82,161.74,1.23636999]
[1721197804288,14.69,161.77,161.73,16.0892]
[1721197804490,6.1808,161.79,161.73,16.0892]
[1721197804491,14.69,161.75,161.73,16.0892]
[1721197804793,14.69,161.76,161.73,17.325713]
[1721197805012,14.69,161.76,161.73,16.0892]
[1721197805815,14.69,161.76,161.73,17.32559753]
[1721197806905,14.69,161.76,161.73,16.0892]
[1721197807106,14.69,161.75,161.73,16.0892]
[1721197807426,14.69,161.76,161.73,16.0892]
[1721197807828,6.1805,161.8,161.73,16.0892]
[1721197808011,14.69,161.75,161.73,16.0892]
[1721197809133,0.17,161.79,161.73,16.0892]
[1721197809134,14.69,161.76,161.73,16.0892]
[1721197809633,0.17,161.79,161.73,16.0892]
[1721197809934,14.69,161.76,161.73,16.0892]
[1721197811330,15.4437,161.88,161.73,16.0892]
[1721197811538,14.69,161.76,161.73,16.0892]
[1721197812409,14.69,161.74,161.73,16.0892]
[1721197813712,14.69,161.75,161.73,16.0892]
[1721197814021,6.1804,161.81,161.73,16.0892]
[1721197814340,14.69,161.76,161.74,1.2364052]
[1721197814849,22.4555,161.86,161.74,42.5236052]
[1721197815151,14.69,161.8,161.75,14.69]
[1721197815317,58.76,161.84,161.74,27.8336052]
[1721197815318,14.69,161.79,161.76,1.23609846]
[1721197815510,14.69,161.79,161.74,41.2872]
[1721197816025,14.69,161.78,161.74,26.5972]
[1721197816217,14.69,161.78,161.75,1.23623504]
[1721197816413,14.69,161.79,161.75,1.23623504]
[1721197816624,58.76,161.84,161.74,26.5972]
[1721197816625,14.69,161.78,161.74,26.5972]
[1721197817625,14.69,161.76,161.73,16.0892]
[1721197817831,58.76,161.84,161.73,16.0892]
[1721197817832,14.69,161.75,161.73,16.0892]
[1721197818216,14.69,161.74,161.73,16.0892]
[1721197819131,14.69,161.74,161.7,6.0122]
[1721197819311,14.69,161.76,161.7,6.0122]
[1721197819632,14.69,161.76,161.69,16.2084]
[1721197819633,14.69,161.72,161.69,16.2084]
[1721197820334,14.69,161.71,161.69,16.2084]
[1721197821027,0.17,161.75,161.69,16.2084]
[1721197821332,0.17,161.75,161.7,1.23668187]
[1721197821525,14.69,161.75,161.71,1.23655229]
[1721197821720,14.69,161.75,161.7,14.69]
[1721197822315,15.8038,161.8,161.71,1.23648244]
[1721197822510,29.4,161.81,161.7,20.0]
[1721197822923,6.1809,161.79,161.7,20.0]
[1721197824020,0.17,161.78,161.7,20.0]
[1721197825322,0.17,161.78,161.71,1.23640603]
[1721197825547,35.5801,161.81,161.72,1.23640649]
[1721197825744,0.17,161.8,161.73,1.2362552]
[1721197825953,29.4,161.84,161.74,15.0885]
[1721197826324,6.1794,161.83,161.74,15.0885]
[1721197827058,29.4,161.87,161.74,16.32463964]
[1721197827446,29.4,161.87,161.74,15.0885]
[1721197827634,6.179,161.84,161.75,1.23599644]
[1721197827835,6.1789,161.85,161.75,1.23599644]
[1721197828053,29.4,161.87,161.74,15.0885]
[1721197828468,29.4,161.87,161.75,1.23599718]
[1721197829073,29.74,161.86,161.75,1.23599718]
[1721197829260,6.179,161.84,161.76,1.2359974]
[1721197829567,0.17,161.83,161.77,1.23599779]
[1721197829860,6.1794,161.83,161.77,1.23599779]
[1721197830062,6.1794,161.83,161.74,15.0885]
[1721197830263,0.34,161.84,161.74,15.0885]
[1721197830440,0.17,161.84,161.74,15.0885]
[1721197830640,0.17,161.85,161.74,15.0885]
[1721197830852,6.1809,161.79,161.74,15.0885]
[1721197831044,6.1816,161.77,161.74,15.0885]
[1721197831458,6.1816,161.77,161.71,6.1671]
[1721197831845,6.5212,161.78,161.71,6.1671]
[1721197832548,6.1816,161.77,161.71,6.1671]
[1721197832740,0.17,161.76,161.71,6.1671]
[1721197833341,0.17,161.77,161.71,6.1671]
[1721197835062,0.17,161.77,161.71,7.40362039]
[1721197835366,0.17,161.77,161.71,6.1671]
[1721197835538,0.17,161.77,161.72,1.23658265]
[1721197835950,0.17,161.78,161.72,1.23658265]
[1721197836163,35.5807,161.8,161.72,1.23658265]
[1721197836164,0.34,161.79,161.72,1.23658265]
[1721197836444,15.4462,161.86,161.73,1.23636105]
[1721197836653,6.18,161.82,161.74,1.2362751]
[1721197836855,6.1801,161.81,161.72,20.0]
[1721197837045,6.1801,161.81,161.73,1.23627757]
[1721197837347,6.1801,161.81,161.74,1.23627556]
[1721197837543,0.17,161.8,161.72,20.0]
[1721197837762,6.3497,161.82,161.73,1.2361482]
[1721197837983,6.3501,161.81,161.72,20.0]
[1721197838271,35.5793,161.83,161.73,15.4934]
[1721197838437,6.1793,161.83,161.74,21.23607036]
[1721197838638,6.179,161.84,161.74,21.23607036]
[1721197838837,6.1793,161.83,161.74,21.23607036]
[1721197839242,6.1797,161.82,161.74,20.0]
[1721197839870,6.5194,161.83,161.75,1.2361114]
[1721197840168,0.34,161.83,161.75,1.2361114]
[1721197840351,0.34,161.83,161.76,1.23601097]
[1721197840554,0.34,161.83,161.77,1.23599732]
[1721197841067,6.1786,161.85,161.77,1.23599732]
[1721197841269,6.519,161.84,161.77,1.23599732]
[1721197841441,6.519,161.84,161.78,1.23595901]
[1721197842147,6.1797,161.82,161.74,20.0]
[1721197842349,6.1801,161.81,161.74,20.0]
[1721197842739,0.34,161.82,161.75,1.23618254]
[1721197842941,6.5197,161.82,161.74,20.0]
[1721197843291,6.5197,161.82,161.75,1.23608715]
[1721197843566,6.1803,161.81,161.75,1.23608484]
[1721197843765,0.34,161.8,161.75,1.23608484]
[1721197843971,6.5197,161.82,161.75,1.23608484]
[1721197844265,6.5198,161.82,161.75,1.23608484]
[1721197844480,0.34,161.82,161.75,1.23608484]
[1721197844982,6.5199,161.82,161.75,1.23608484]
[1721197845157,0.34,161.82,161.75,1.23608484]
[1721197845475,0.17,161.81,161.75,1.23608484]
[1721197845649,29.74,161.83,161.74,20.0]
[1721197845851,6.1801,161.81,161.74,20.0]
[1721197846192,6.5206,161.8,161.74,21.23623092]
[1721197846360,0.17,161.79,161.73,15.4934]
[1721197847365,6.1812,161.78,161.73,15.4934]
[1721197847567,0.34,161.77,161.73,15.4934]
[1721197848346,0.34,161.78,161.73,15.4934]
[1721197848759,0.34,161.79,161.73,15.4934]
[1721197848962,6.5209,161.79,161.73,15.4934]
[1721197849462,0.34,161.79,161.73,15.4934]
[1721197850978,6.5208,161.79,161.73,15.4934]
[1721197852968,6.1813,161.78,161.73,15.4934]
[1721197853281,0.34,161.79,161.67,22.444]
[1721197853282,29.74,161.77,161.67,22.444]
[1721197853462,6.1839,161.71,161.67,22.444]
[1721197853656,6.1834,161.73,161.67,22.444]
[1721197853856,0.17,161.72,161.67,22.444]
[1721197854382,6.3535,161.72,161.67,22.444]
[1721197854563,0.17,161.72,161.67,22.444]
[1721197856587,0.34,161.73,161.67,22.444]
[1721197856757,6.1836,161.72,161.67,15.9259]
[1721197857060,29.74,161.71,161.63,23.1084]
[1721197857259,6.1844,161.7,161.63,23.1084]
[1721197857458,0.34,161.69,161.63,23.1084]
[1721197859180,6.5247,161.69,161.63,16.5261]
[1721197859563,29.74,161.69,161.63,16.5261]
[1721197859986,6.1851,161.68,161.63,16.5261]
[1721197860160,0.34,161.67,161.63,16.5261]
[1721197860361,29.74,161.69,161.63,16.5261]
[1721197861080,29.74,161.69,161.59,21.7214]
[1721197861288,6.1862,161.65,161.59,21.7214]
[1721197861589,0.17,161.64,161.59,21.7214]
[1721197862259,0.34,161.65,161.59,21.7214]
[1721197862579,0.17,161.64,161.59,21.7214]
[1721197862788,0.34,161.66,161.59,21.7214]
[1721197863179,0.34,161.66,161.6,1.23753901]
[1721197863370,0.34,161.67,161.59,21.7214]
[1721197863575,0.17,161.66,161.59,21.7214]
[1721197863779,6.5253,161.68,161.59,15.535]
[1721197863780,0.34,161.68,161.59,15.535]
[1721197863972,6.187,161.63,161.59,15.535]
[1721197864172,6.187,161.63,161.55,6.4596]
[1721197864173,6.1879,161.61,161.55,6.4596]
[1721197864376,0.34,161.6,161.55,6.4596]
[1721197864573,0.17,161.59,161.54,15.3069]
[1721197864811,6.3585,161.59,161.54,15.3069]
[1721197865095,0.17,161.58,161.54,15.3069]
[1721197865593,0.17,161.59,161.54,15.3069]
[1721197865889,0.34,161.59,161.54,15.3069]
[1721197867383,0.34,161.59,161.52,1.23791797]
[1721197867574,0.34,161.59,161.51,6.4159]
[1721197867892,0.34,161.6,161.52,1.23789569]
[1721197868079,6.5281,161.6,161.51,6.4159]
[1721197868791,6.1901,161.55,161.47,6.45147727]
[1721197868984,6.5307,161.54,161.46,22.8894]
[1721197870293,6.5307,161.54,161.47,20.0]
[1721197870482,6.5307,161.54,161.46,22.8894]
[1721197871195,6.5307,161.54,161.46,16.6241]
[1721197872003,0.34,161.54,161.46,16.6241]
[1721197872300,6.1943,161.44,161.41,6.45372698]
[1721197872595,6.0355,161.52,161.38,10.0]
[1721197872798,6.1923,161.49,161.4,6.4477429]
[1721197872997,0.17,161.48,161.4,6.4477429]
[1721197873494,6.1919,161.5,161.4,6.4477429]
[1721197873799,29.4,161.53,161.4,6.4477429]
[1721197874497,6.192,161.5,161.4,6.4477429]
[1721197874796,6.192,161.5,161.41,20.0]
[1721197875180,6.192,161.5,161.42,16.1934]
[1721197875498,6.5325,161.49,161.42,16.1934]
[1721197876220,6.2761,161.56,161.42,16.1934]
[1721197876392,49.4,161.55,161.43,20.0]
[1721197876593,6.1907,161.54,161.43,20.0]
[1721197876901,6.1918,161.51,161.43,20.0]
[1721197877193,49.4,161.55,161.43,21.23842136]
[1721197877698,0.17,161.54,161.43,21.23842136]
[1721197877893,0.34,161.54,161.43,21.23842136]
[1721197878097,0.34,161.54,161.43,20.0]
[1721197878500,6.1908,161.53,161.43,20.0]
[1721197878691,0.34,161.52,161.43,20.0]
[1721197878889,6.5312,161.52,161.43,20.0]
[1721197879807,6.5312,161.52,161.44,1.2384389]
[1721197880392,6.5312,161.52,161.43,20.0]
[1721197880599,49.4,161.55,161.45,6.6058]
[1721197880802,6.5306,161.54,161.45,6.6058]
[1721197881005,6.1908,161.53,161.45,6.6058]
[1721197881309,6.1908,161.53,161.46,1.23833252]
[1721197881499,6.1908,161.53,161.45,6.6058]
[1721197882906,0.34,161.52,161.45,6.6058]
[1721197883101,0.17,161.51,161.45,6.6058]
[1721197883287,6.1916,161.51,161.46,1.23854538]
[1721197883607,6.1916,161.51,161.45,6.6058]
[1721197883608,6.1911,161.52,161.45,6.6058]
[1721197883784,6.1908,161.53,161.45,6.6058]
[1721197884124,6.3612,161.52,161.45,6.6058]
[1721197884411,6.1915,161.51,161.45,6.6058]
[1721197885706,6.1912,161.52,161.45,6.6058]
[1721197886080,6.1923,161.49,161.42,16.1934]
[1721197886593,0.34,161.48,161.42,16.1934]
[1721197886792,6.5327,161.48,161.42,16.1934]
[1721197887737,0.34,161.48,161.42,16.1934]
[1721197888422,6.1919,161.5,161.42,16.1934]
[1721197888725,29.4,161.52,161.42,16.1934]
[1721197888889,29.4,161.52,161.43,1.2385623]
[1721197889096,6.1916,161.51,161.42,16.1934]
[1721197889521,6.1919,161.5,161.42,16.1934]
[1721197890020,6.1925,161.49,161.43,1.23857455]
[1721197890224,6.192,161.5,161.43,1.23857455]
[1721197891098,6.192,161.5,161.42,16.1934]
[1721197891306,6.192,161.5,161.43,1.23862759]
[1721197891492,6.1924,161.49,161.42,16.1934]
[1721197891705,0.34,161.51,161.42,16.1934]
[1721197891911,6.1926,161.49,161.43,1.23871855]
[1721197892120,0.17,161.48,161.43,1.23872517]
[1721197892790,6.3627,161.48,161.43,1.2387273]
[1721197892986,6.3627,161.48,161.43,1.2387275]
[1721197894333,0.17,161.48,161.43,1.2387275]
[1721197894929,6.3627,161.48,161.43,1.2387275]
[1721197895500,0.17,161.48,161.43,1.2387275]
[1721197895892,6.3627,161.48,161.43,1.2387275]
[1721197896100,6.3627,161.48,161.42,16.1934]
[1721197896292,0.17,161.48,161.42,16.1934]
[1721197896692,0.17,161.48,161.43,1.23882658]
[1721197897195,44.8786,161.52,161.42,16.1934]
[1721197897399,0.34,161.51,161.42,16.1934]
[1721197897597,0.34,161.51,161.43,1.23859925]
[1721197898222,6.1907,161.54,161.43,1.23859925]
[1721197898411,6.1916,161.51,161.43,1.23859925]
[1721197898614,6.192,161.5,161.44,1.23856146]
[1721197899831,6.1916,161.51,161.44,1.23856146]
[1721197900304,6.192,161.5,161.44,1.23856146]
[1721197900499,6.1923,161.49,161.44,1.23856146]
[1721197901422,6.1919,161.51,161.42,16.1934]
[1721197901629,6.1919,161.51,161.43,1.23853697]
[1721197901922,29.57,161.52,161.42,16.1934]
[1721197902330,6.1927,161.49,161.42,16.1934]
[1721197902905,6.192,161.5,161.42,16.1934]
[1721197903101,6.1924,161.49,161.43,1.23861458]
[1721197903311,6.192,161.5,161.43,1.23861458]
[1721197904534,6.192,161.5,161.42,16.1934]
[1721197904709,6.192,161.5,161.43,1.238588]
[1721197904910,6.1942,161.44,161.38,29.4]
[1721197905111,6.1942,161.44,161.37,6.45178213]
[1721197905112,6.1965,161.38,161.37,6.45178213]
[1721197905408,29.57,161.38,161.29,16.3061]
[1721197905608,0.34,161.37,161.29,16.3061]
[1721197906263,0.17,161.37,161.29,16.3061]
[1721197906546,0.34,161.37,161.29,16.3061]
[1721197907228,6.1973,161.36,161.29,16.3061]
[1721197907437,6.3673,161.36,161.29,16.3061]
[1721197907635,6.3673,161.36,161.3,15.4988]
[1721197907937,6.5373,161.36,161.3,15.4988]
[1721197908124,6.5373,161.36,161.3,21.6982]
[1721197909423,6.5373,161.36,161.31,6.1992]
[1721197909818,0.17,161.36,161.32,6.1987]
[1721197910037,0.17,161.37,161.33,15.4958]
[1721197910237,6.537,161.37,161.32,6.1985]
[1721197911144,0.34,161.37,161.32,6.1985]
[1721197911443,0.34,161.37,161.33,6.1983]
[1721197913020,0.34,161.37,161.34,6.198]
[1721197913737,0.34,161.37,161.32,15.4964]
[1721197913738,6.1973,161.36,161.32,15.4964]
[1721197913939,6.5373,161.36,161.29,38.0054]
[1721197914147,6.5373,161.36,161.29,31.8058]
[1721197915031,6.5373,161.36,161.31,6.1989]
[1721197915334,0.34,161.36,161.32,6.1986]
[1721197916332,0.17,161.36,161.33,6.1983]
[1721197917047,0.17,161.36,161.32,6.1987]
[1721197918053,6.3673,161.36,161.29,16.3061]
[1721197918231,6.5373,161.36,161.29,16.3061]
[1721197918550,6.5373,161.36,161.3,6.1995]
[1721197919224,6.5373,161.36,161.29,16.3061]
[1721197919422,26.5373,161.36,161.29,22.5059]
[1721197920848,26.5373,161.36,161.3,6.1992]
[1721197921530,26.5373,161.36,161.29,22.506]
[1721197922126,48.631,161.36,161.25,1.23982415]
[1721197922327,20.34,161.36,161.29,15.4996]
[1721197922527,26.5373,161.36,161.29,15.4996]
[1721197922747,26.5373,161.36,161.3,6.1995]
[1721197923738,20.34,161.36,161.29,15.4996]
[1721197923934,6.197,161.37,161.29,15.4996]
[1721197924348,6.1973,161.36,161.31,6.1992]
[1721197924653,66.8324,161.41,161.32,6.1988]
[1721197924831,6.1965,161.38,161.32,6.1988]
[1721197925048,20.0,161.37,161.32,6.1988]
[1721197925252,20.0,161.37,161.31,15.8657]
[1721197925451,6.1973,161.36,161.31,15.8657]
[1721197926081,6.5373,161.36,161.31,15.8657]
[1721197926576,6.5373,161.36,161.29,6.2]
[1721197926952,6.5373,161.36,161.31,6.1992]
[1721197927354,6.5373,161.36,161.3,6.1995]
[1721197928592,6.5373,161.36,161.31,6.1991]
[1721197928871,0.34,161.36,161.33,6.1983]
[1721197929254,6.1967,161.38,161.33,6.1983]
[1721197929474,6.197,161.37,161.31,21.6964]
[1721197930171,6.1973,161.36,161.28,6.2]
[1721197930371,6.1973,161.36,161.27,31.9408]
[1721197930372,6.1973,161.36,161.29,1.23977661]
[1721197930674,6.3673,161.36,161.3,6.1993]
[1721197930848,6.5373,161.36,161.3,6.1993]
[1721197931049,6.5373,161.36,161.29,21.6992]
[1721197931488,6.5373,161.36,161.3,6.1995]
[1721197933282,6.5373,161.36,161.31,6.1991]
[1721197933488,0.34,161.36,161.32,6.1988]
[1721197935374,6.1958,161.4,161.35,12.0308435]
[1721197935780,29.4,161.44,161.35,5.8332435]
[1721197935781,6.1963,161.39,161.35,5.8332435]
[1721197935985,6.1973,161.36,161.35,5.8332435]
[1721197936164,29.4,161.41,161.35,5.8332435]
[1721197936165,6.1969,161.37,161.35,5.8332435]
[1721197936364,6.1973,161.36,161.35,5.8332435]
[1721197936675,6.3673,161.36,161.35,5.8332435]
[1721197936870,6.5373,161.36,161.35,5.8332435]
[1721197939488,0.34,161.36,161.35,5.8332435]
[1721197942184,20.34,161.36,161.35,5.8332435]
[1721197942500,26.5373,161.36,161.35,5.8332435]
[1721197943682,20.34,161.36,161.35,5.8332435]
[1721197944002,26.5373,161.36,161.35,5.8332435]
[1721197947498,26.1973,161.36,161.35,5.8332435]
[1721197948273,40.9773,161.36,161.35,5.8332435]
[1721197948676,41.3173,161.36,161.35,5.8332435]
[1721197950595,26.5373,161.36,161.35,5.8332435]
[1721197950788,41.3173,161.36,161.35,5.8332435]
[1721197952100,41.3173,161.36,161.35,5.3332435]
[1721197956399,123.1805,161.36,161.35,4.35e-05]
[1721197956600,129.3765,161.36,161.35,4.35e-05]
[1721197956831,129.62760513,161.36,161.35,4.35e-05]
[1721197957109,123.1805,161.36,161.35,4.35e-05]
[1721197957691,100.4373,161.36,161.35,4.35e-05]
[1721197957883,40.9773,161.36,161.35,4.35e-05]
[1721197959383,34.95,161.36,161.35,4.35e-05]
[1721197959703,41.3173,161.36,161.35,4.35e-05]
[1721197962202,56.0973,161.36,161.35,4.35e-05]
[1721197963201,41.3173,161.36,161.35,4.35e-05]
[1721197972709,6.1973,161.36,161.35,4.35e-05]
[1721197972894,14.78,161.39,161.35,4.35e-05]
[1721197973104,20.9769,161.37,161.35,4.35e-05]
[1721197973408,14.78,161.36,161.35,4.35e-05]
[1721197973910,32.0625,161.43,161.35,4.35e-05]
[1721197973911,14.78,161.37,161.35,4.35e-05]
[1721197974997,14.78,161.36,161.35,4.35e-05]
[1721197975533,21.1473,161.36,161.35,4.35e-05]
[1721197975701,21.3173,161.36,161.35,4.35e-05]
[1721197977791,126.41567279,161.36,161.22,0.03895467]
[1721197978030,6.1988,161.32,161.22,1.27930576]
[1721197978213,21.1492,161.31,161.26,20.9808]
[1721197978394,14.95,161.31,161.26,20.9808]
[1721197979095,21.1492,161.31,161.26,20.9808]
[1721197979717,6.1996,161.3,161.26,14.78]
[1721197979921,20.9796,161.3,161.25,28.64418694]
[1721197980419,20.0,161.36,161.26,15.502]
[1721197980629,14.78,161.34,161.28,14.78]
[1721197980797,20.0,161.36,161.28,14.78]
[1721197981097,6.1977,161.35,161.29,20.9796]
[1721197981297,6.1977,161.35,161.29,16.019767]